Cogmind - Beta 17 @@@ ROGUE MODE // 2026.08.16 @ 20:29:05 Player: MrFartsburg Result: Destroyed by Y-45 Defender with Heavy Assault Rifle Performance ------------- Evolutions (0) 0 Regions Visited (2) 400 Robots Destroyed (7) 35 Value Destroyed (157) 157 Prototype IDs (0) 0 Alien Tech Used (0) 0 Bonus (0) 0 TOTAL SCORE: 592 Bonus ------- None Cogmind --------- Core Integrity 0/250 Matter 298/300 Energy 100/100 System Corruption 3% Temperature Cool (0) Movement Core (700) Ox13 Location -10/Mines Parts ------- > --- POWER (1) -------- (None) > --- PROPULSION (2) --- (None) > --- UTILITY (2) ------ High-capacity Storage Unit > --- WEAPON (2) ------- (None) > --- INVENTORY (20) --- Weight Redist. System Sensor Array Recoil Stabilizer Insulated Plating Improved Trap Extractor (0/6) Medium Laser Small Laser Light Assault Rifle Peak State ------------ > --- POWER ------------ Ion Engine > --- PROPULSION ------- Advanced Treads Wheel > --- UTILITY ---------- High-capacity Storage Unit Core Shielding > --- WEAPON ----------- Shock Rifle Light Assault Rifle > --- INVENTORY -------- Weight Redist. System Sensor Array Recoil Stabilizer Insulated Plating Improved Trap Extractor Medium Laser Small Laser Field Laser Light Assault Rifle [Rating: 12] Favorites ----------- Power Ion Engine Engine Ion Engine Propulsion Wheel Treads Advanced Treads Wheel Wheel Utility Core Shielding Storage High-capacity Storage Unit Protection Core Shielding Weapon Light Assault Rifle Energy Gun Field Laser Ballistic Gun Light Assault Rifle Build | -11 -10 -10 ------- Run | Yrd Mat Min Slots Evolved . | . . . Power . | . . . Propulsion . | . . . Utility . | . . . Weapon . | . . . Parts Attached 13 | 6 2 5 Power 3 | 1 . 2 Engine 3 | 1 . 2 Core . | . . . Reactor . | . . . Propulsion 3 | 2 . 1 Treads 1 | . . 1 Leg . | . . . Wheel 2 | 2 . . Hover . | . . . Flight . | . . . Utility 3 | 1 2 . Device . | . . . Storage 2 | 1 1 . Processor . | . . . Hackware . | . . . Protection 1 | . 1 . Artifact . | . . . Weapon 4 | 2 . 2 Energy Gun 2 | . . 2 Energy Cannon . | . . . Ballistic Gun 2 | 2 . . Ballistic Cannon . | . . . Launcher . | . . . Special Weapon . | . . . Impact Weapon . | . . . Slashing Weapon . | . . . Piercing Weapon . | . . . Special Melee Weapon . | . . . Unidentified Prototypes . | . . . Parts Lost 8 | . . 8 Power 2 | . . 2 Propulsion 2 | . . 2 Utility 1 | . . 1 Weapon 3 | . . 3 Highest Loss Streak 6 | . . 6 To Critical Strikes . | . . . Average Backups 6 | . 2 7 Power . | . 1 . Propulsion . | . . . Utility 3 | . . 4 Weapon 2 | . 1 3 Tool/Special . | . . . Unused Backups 7 | . . 7 Power . | . . . Propulsion . | . . . Utility 4 | . . 4 Weapon 3 | . . 3 Tool/Special . | . . . Average Slot Usage (%) 94 | . 95 94 Engine 12 | . 14 12 Treads 8 | . . 11 Wheel 18 | . 26 15 Storage 14 | . 14 14 Protection 13 | . 12 13 Energy Gun 8 | . . 11 Ballistic Gun 18 | . 28 14 Peak Build Rating 12 | 6 7 12 Average Rating 9 | 4 6 10 On Entrance 4 | . 6 7 Avg Prop Armor Cover (%) 6 | . . 6 Naked Turns . | . . . Heaviest Build 50 | 12 48 50 Greatest Support 22 | 20 20 22 Greatest Overweight (x) 13 | . 2 13 Average Overweight (x) 1 | . . 2 Largest Inventory Capacity 20 | 8 20 20 Average Capacity 17 | 7 13 20 Most Carried 10 | 2 5 10 Average Carried 6 | . 2 7 Final Capacity 20 | 8 20 20 Final Carried 8 | 2 5 8 Class Distribution -------------------- 100% | Mutant Dominant Class ---------------- Mutant | -10/Materials Mutant | -10/Mines Resources | -11 -10 -10 ----------- Run | Yrd Mat Min Matter Collected 362 | 250 56 56 Remotely . | . . . Salvage Created 261 | . 109 152 Parts 16 | . 8 8 Haulers Intercepted 1 | . 1 . Recyclers Shooed 1 | . . 1 Parts Field Recycled . | . . . Retrieved Matter . | . . . Parts Self-Destructed . | . . . Prevented . | . . . Parts Restored . | . . . Kills | -11 -10 -10 ------- Run | Yrd Mat Min Combat Hostiles Destroyed 6 | . 1 5 Guns 6 | . 1 5 Classes Destroyed 3 | . 2 1 Hauler 1 | . 1 . Swarmer 3 | . . 3 Grunt 3 | . 1 2 Best Kill Streak 2 | . 1 2 Combat Bots Only 2 | . 1 2 Max Kills in Single Turn 1 | . 1 1 Gunslinging . | . . . Exploded . | . . . Melee . | . . . Uniques/NPCs Destroyed . | . . . Combat | -11 -10 -10 -------- Run | Yrd Mat Min Hostile Shots Fired 110 | . 7 103 Missed 33 | . 1 32 Hits 77 | . 6 71 Projectile 77 | . 6 71 Critical Strikes 1 | . . 1 Damage Taken 989 | . 74 915 Core 255 | . . 255 Absorbed by Shields . | . . . Redirected to Shielding 50 | . . 50 Regen/Repaired (Parts) 2 | . 2 . Core Remaining (%) 100 | 100 . . Volleys Fired 27 | . 7 20 Largest 2 | . 2 2 Hottest 83 | . 40 83 Shots Fired 49 | . 14 35 Gun 49 | . 14 35 Cannon . | . . . Launcher . | . . . Special . | . . . Kinetic 35 | . 14 21 Thermal 8 | . . 8 Explosive . | . . . Electromagnetic 6 | . . 6 Robot Hit Streak 8 | . 8 4 Robot Miss Streak 4 | . 4 4 Penetration Max . | . . . Secondary Targets 1 | . . 1 Max Gunslinging Chain 1 | . . 1 Shots Hit Robots 26 | . 9 17 Core Hits 11 | . 4 7 Critical Kills . | . . . Critical Parts Destroyed . | . . . Critical Strikes . | . . . Melee Attacks . | . . . Impact . | . . . Slashing . | . . . Piercing . | . . . Sneak Attacks . | . . . Combat Hostiles . | . . . Follow-up Attacks . | . . . Damage Inflicted 299 | . 90 209 Guns 289 | . 80 209 Cannons . | . . . Explosions . | . . . Melee . | . . . Ramming 10 | . 10 . Kinetic 146 | . 80 66 Thermal 69 | . . 69 Explosive . | . . . Electromagnetic 74 | . . 74 Impact . | . . . Slashing . | . . . Piercing . | . . . Highest Corruption 3 | . 3 3 Average Corruption 2 | . 2 3 Corruption Purged . | . . . Corruption Blocked . | . . . Effects 12 | . 2 10 Message Errors 3 | . 1 2 Matter Fused 4 | . 1 3 Heat Flow Errors 1 | . . 1 Energy Discharges 2 | . . 2 Data Loss (minor) 1 | . . 1 Misfires 1 | . . 1 Overload Shots . | . . . Overflow Damage . | . . . Projectiles . | . . . Explosions . | . . . Melee . | . . . Knockbacks . | . . . Impact . | . . . Kinetic . | . . . Secondary . | . . . Self-Inflicted Damage 5 | . 5 . Shots . | . . . Rammed 2 | . 2 . Targets Rammed 2 | . 2 . Kicked . | . . . Crushed . | . . . Highest Temperature 151 | . 12 151 Average Temperature 56 | . 9 60 Received Heat Transfer 312 | . 36 276 Siege Activations . | . . . Martial Activations . | . . . Shielding Activations . | . . . Robots Disrupted . | . . . Combat Hostiles . | . . . Robots Corrupted . | . . . Combat Hostiles . | . . . Parts Fried . | . . . Impact Corruptions . | . . . Robots Melted . | . . . Combat Hostiles . | . . . Parts Melted . | . . . Heat Transferred 148 | . . 148 Parts Sabotaged . | . . . Parts Stolen . | . . . Parts Stripped . | . . . Power Chain Reactions . | . . . Alert | -11 -10 -10 ------- Run | Yrd Mat Min Maximum Alert Level . | . . . Low Security (%) 100 | 100 100 100 Level 1 . | . . . Level 2 . | . . . Level 3 . | . . . Level 4 . | . . . Level 5 . | . . . High Security . | . . . Max Security . | . . . Peak Influence 75 | . 25 75 Initial . | . . . Average 13 | . 5 18 Influence Increases 177 | . 42 135 Destroy 0b10 Robot/C 120 | . 20 100 Destroy 0b10 Robot/NC 5 | . 5 . Destroy Leader 22 | . 2 20 Disable Machine 15 | . . 15 Lose Combat Pursuer 15 | . 15 . Influence Decreases 177 | . 40 137 Entered New Map 2 | . . 2 Time Decay 155 | . 40 115 Lost Part 20 | . . 20 Squads Dispatched 1 | . 1 . Investigation . | . . . Extermination . | . . . Reinforcement 1 | . 1 . Assault . | . . . Garrison . | . . . Intercept . | . . . Searches Triggered . | . . . Construction Impeded . | . . . Haulers Reinforced . | . . . Active Scanning Responses . | . . . Cargo Convoy Interrupts . | . . . Stealth | -11 -10 -10 --------- Run | Yrd Mat Min Distress Signals 2 | . 2 . Communications Jammed . | . . . Distress Signals . | . . . Times Spotted 11 | . 4 7 Peak Tracking Total 3 | . 3 3 Tactical Retreats 1 | . 1 . Traps | -11 -10 -10 ------- Run | Yrd Mat Min Traps Triggered 4 | . 2 2 Indirectly . | . . . Trap Hack Attempts . | . . . Triggered . | . . . Disarmed . | . . . Reprogrammed . | . . . Reused . | . . . Traps Extracted . | . . . Installed . | . . . Triggered . | . . . Machines | -11 -10 -10 ---------- Run | Yrd Mat Min Machines Disabled 1 | . . 1 Max in Single Turn 1 | . . 1 Machines Repaired . | . . . Machines Dismantled . | . . . Machines Sabotaged . | . . . Overloaded Fab Kills . | . . . Hacking | -11 -10 -10 --------- Run | Yrd Mat Min Machines Accessed 3 | . 2 1 Terminals 1 | . 1 . Fabricators . | . . . Repair Stations 1 | . 1 . Recycling Units . | . . . Scanalyzers . | . . . Garrison Access . | . . . Total Hacks 4 | . 3 1 Successful 3 | . 2 1 Failed 1 | . 1 . Catastrophic . | . . . Database Lockouts . | . . . Manual . | . . . Terminals 1 | . 1 . Fabricators . | . . . Repair Stations 2 | . 2 . Recycling Units . | . . . Scanalyzers . | . . . Garrison Access . | . . . Terminal Hacks 1 | . . 1 Open Door 1 | . . 1 Fabricator Hacks . | . . . Repair Station Hacks 2 | . 2 . Scan Component 1 | . 1 . Repair 1 | . 1 . Recycling Unit Hacks . | . . . Scanalyzer . | . . . Garrison Access Hacks . | . . . Unauthorized Hacks . | . . . Terminals . | . . . Fabricators . | . . . Repair Stations . | . . . Recycling Units . | . . . Scanalyzers . | . . . Garrison Access . | . . . Data Cores Recovered . | . . . Used . | . . . Hacking Detections 1 | . 1 . Full Trace Events . | . . . Feedback Events . | . . . Feedback Blocked . | . . . Robot Schematics Acquired . | . . . Robots Built . | . . . Authchips . | . . . Time . | . . . Total Robot Build Rating . | . . . Part Schematics Acquired . | . . . Parts Built . | . . . Authchips . | . . . Time . | . . . Total Part Build Rating . | . . . Part Studies Acquired . | . . . Parts Repaired 1 | . 1 . Time 26 | . 26 . Parts Recycled . | . . . Recycled Matter . | . . . Retrieved Matter . | . . . Retrieved Components . | . . . Parts Scanalyzed . | . . . Part Schematics Acquired . | . . . Parts Damaged . | . . . Bothacking | -11 -10 -10 ------------ Run | Yrd Mat Min Used RIF Installer . | . . . Robots Hacked . | . . . Non-combat . | . . . Combat . | . . . Robot Hacks Applied . | . . . Relay Couplers Released . | . . . Fabnet Peak Effective % . | . . . Robots Rewired . | . . . Allies Hacked . | . . . Hacks Repelled . | . . . Allies | -11 -10 -10 -------- Run | Yrd Mat Min Total Allies . | . . . Largest Group . | . . . Highest-Rated Group . | . . . Highest-Rated Ally . | . . . Total Orders . | . . . Ally Attacks . | . . . Total Damage . | . . . Kills . | . . . Allies Corrupted . | . . . Allies Melted . | . . . Intel | -11 -10 -10 ------- Run | Yrd Mat Min Active Infowar (turns) . | . . . Robot Analysis Total . | . . . Derelict Logs Recovered . | . . . Drone Launches . | . . . Drone Recoveries . | . . . Exploration | -11 -10 -10 ------------- Run | Yrd Mat Min Turns Passed 759 | 50 206 503 Spaces Moved 394 | 49 171 174 Core 4 | 1 . 3 Treads 121 | . . 121 Legs . | . . . Wheels 269 | 48 171 50 Hover . | . . . Flight . | . . . Fastest Speed 50 | 50 80 110 Average Speed 159 | 79 87 253 Slowest Speed 700 | 80 110 700 Overloaded Moves . | . . . Propulsion Burnouts . | . . . Robots Hopped . | . . . Potential Cave-ins . | . . . Cave-ins Triggered . | . . . Exploration Rate (%) 25 | 4 27 44 Regions Visited 2 Branch Regions 1 Pre-discovered Areas . | . . . Known Exits Taken . | . . . Unknown Exits Taken 2 | 1 1 . Scrap Searched 2 | . . 2 Spaces Dug . | . . . Terrain Destroyed . | . . . Melee . | . . . Projectile . | . . . AOE . | . . . Terrain Rammed . | . . . Walls Destroyed . | . . . Machines Disabled . | . . . Actions | -11 -10 -10 --------- Run | Yrd Mat Min Total 481 | 56 215 210 Wait 30 | . 28 2 Move 392 | 48 170 174 Hop . | . . . Pick Up 12 | 2 4 6 Fast Attach 10 | 6 2 2 Attach 2 | . . 2 Detach . | . . . Swap 2 | . 1 1 Drop 4 | . 1 3 Fire 27 | . 7 20 Melee . | . . . Ram 2 | . 2 . Kick . | . . . Crush . | . . . Escape Stasis . | . . . Rewire . | . . . Trap . | . . . Miscellaneous . | . . . Route ------- -11/Scrapyard -10/Materials -10/Mines History --------- Turn | Location | Event 30 | -11/Scrapyard | Discovered new exit (range 14) 51 | -11/Scrapyard | Entered Materials 193 | -10/Materials | Repaired Wheel 210 | -10/Materials | Discovered new exit (range 16) 257 | -10/Materials | Entered Mines 269 | -10/Mines | Met a Derelict bent on vengeance 298 | -10/Mines | Met a Derelict who couldn't figure out how to use a Trap Extractor 345 | -10/Mines | Build established: Mutant 749 | -10/Mines | Core integrity fell below 50% 755 | -10/Mines | Core integrity fell below 20% 760 | -10/Mines | Destroyed by Y-45 Defender with Heavy Assault Rifle Last Messages --------------- Acquired 18 matter. System corrupted: Component data lost. K-01 Serf collects debris. Acquired 12 matter. K-01 Serf collects debris. Acquired 16 matter. K-01 Serf collects debris. System corrupted: Energy discharge (-87). K-01 Serf collects debris. System corrupted: Matter fused (-9). DDIRGZWJ/E7QDCBE%M9Y=VLKDPIQN8T107 System corrupted: Energy discharge (-75). Lgt. Assault Rifle destroyed. Ion Engine destroyed. Field Laser destroyed. Adv. Treads destroyed. Wheel destroyed. Critical hit (Burn: +37). #=JZQSBZTW:5K2 R5CQEA%QE>L/DU 6RUF90Y Core Shielding destroyed. Map ----- +----------------------------------------------------+ | | | | | ???????????????????????????????????????????? | | ?????????????????###???????????????????????? | | ????????????????## ##?????????????????????? | | ????????????????# ##????????????????????? | | ????????????????# ##???????????????????? | | ????????????????## ##??????????????????? | | ?????????????????## #######????????????? | | ??????????????????## ######???????? | | ???????????????????## #???????? | | ????????????????????##### #???????? | | ????????????????????????###### #???????? | | ?????????????????????????????## #???????? | | ?????????????????????????????## ##??????? | | ??####??????????????????????## ##?????? | | ?## #???????????????????### ####### | | ?# #?????????????????## | | ?# ?????????????????# [ * | | ??? ?????????????????# = ### # | | ????# ##???????????????# [ ##???#? | | ?????# ##?????????????## ##???????? | | ??????# ##????????????# u #????????? | | ???????# ############## #????????? | | ???????# Y ##????????? | | ??????## Y @ #####?????????? | | ?????## #### ########## ##?????????????? | | ?###?# #??# #??????## ##??????????????? | | ?#" ## #??# #??????# %=##???????????????? | | #"" # #??# #??????# !%#????????????????? | | #[[ / ##?# ######## ##???????????????? | | #!! / ### ##??????????????? | | #"" # # ######## #???????######?? | | ##" ## ## #### #??????# ### | | ?###?## # #??#### # | | ??????####### ## ]# #### | | ????????????####" ! ## | | ???????????????#[ = = #?????? | | ???????????????# !%#] # #??????? | | ???????????????## ## # #??????? | | ????????????????####### ##?????? | | ?????????????????????# ## ##????? | | ????????????????????# ##### #????? | | ???????????????????# ##???## #????? | | ??????????????????# ##?????## ##????? | | ?????????????????# #????????## #?????? | | ?????????????????# #??????????# ##?????? | | ?????????????????# ???????????# #??????? | | ????????????????? ???????????# #??????? | | ?????????????????? ?????????####[ #??????? | +----------------------------------------------------+ Best States ------------- Heat Dissipation 25 Energy Generation 10 Energy Capacity 250 Matter Stores 300 Matter Capacity 300 Sight Range 16 Terrain Scan Density 10 Core Shielding 20 Evasion (%) 44 Recoil Reduction 1 Item Schematics ----------------- None Robot Schematics ------------------ None Fabricated ------------ Nothing Repaired ---------- Wheel | 95% | -10/Materials Studied --------- None Alien Tech Used ----------------- None Achievements -------------- None Challenges ------------ None Game ------ Seed PartitionInterceptFist Manual? 0 Play Time 00:10:40 Cumulative 31.5 hours Start 2026.08.16 @ 20:18:57 End 2026.08.16 @ 20:29:05 Sessions 1 Manual Loads 0 Difficulty Rogue Special Mode None Game No. 59 Rogue 59 Adventurer 0 Explorer 0 Win Type - Total 0 Types 0/0/0/0/0/0/0/0/0/0 Lore% 13 Gallery% 23 Achievement% 15 Wizard Run 0 Options --------- Layout 1 ASCII 0 Keyboard 0 Movement Numpad Keybinds 0 Fullscreen 1 Font 32/SmallcapsGlow Map View 50x35 Zoom Use 0% Tactical HUD 0 Map Filters NONE Filters NONE Steam 1 RUN: c9cc1d6a-7420-4fc2-8b05-b0a1c378074e